[Event "39th Citta Arco Open 2017"]
[Site "Arco"]
[Date "2017.10.13"]
[Round "7.8"]
[White "Vezzosi, Paolo"]
[Black "Valenti, Giuseppe"]
[Result "1/2-1/2"]
[ECO "D33"]
[WhiteElo "2299"]
[BlackElo "2149"]
[Annotator "NA"]
[PlyCount "83"]
[EventDate "2017.??.??"]
[EventType "swiss"]
[EventCountry "ITA"]
[SourceTitle "playchess.com"]
[Source "ChessBase"]
[SourceQuality "1"]
[TimeControl "40/5400+30:1800+30"]

1. c4 {[%emt 0:00:30]} e6 {[%emt 0:02:00]} 2. g3 {[%emt 0:00:30]} Nf6 {[%emt 0:00:30]} 3. Bg2 {[%emt 0:00:30]} d5 {[%emt 0:00:30]} 4. Nf3 {[%emt 0:00:00]} Be7 {[%emt 0:00:30]} 5. O-O {[%emt 0:00:00]} O-O {[%emt 0:00:00]} 6. d4 {[%emt 0:02:30]} c5 {[%emt 0:05:00]} 7. cxd5 {[%emt 0:00:30]} exd5 {[%emt 0:00:30]} 8. Nc3 {[%emt 0:04:30]} h6 {[%emt 0:06:30]} 9. dxc5 {[%emt 0:06:30]} Bxc5 {[%emt 0:03:30]} 10. Bf4 {[%emt 0:00:30]} Nc6 {[%emt 0:03:30]} 11. Rc1 {[%emt 0:01:30]} Be6 {[%emt 0:05:30]} 12. Na4 {[%emt 0:06:30] D33: Tarrasch Defence: 6 g3 sidelines} (12. Ne5 Rc8 13. Na4 Bb6 14. Nxb6 Qxb6 15. Nxc6 bxc6 16. Bd6 Rfe8 17. Qc2 Ne4 18. Bxe4 {½-½ (18) Mihic,B (2413)-Dezelin,M (2308) Valjevo 2010}) 12... Bd6 {[%emt 0:12:30]} 13. Bxd6 {[%emt 0:02:30]} Qxd6 {[%emt 0:00:00]} 14. Nc5 $146 {[%emt 0:00:30]} ({Predecessor:} 14. Nd4 Nxd4 15. Qxd4 Qe7 16. Nc3 Qd7 17. Rfd1 Rfd8 18. a3 b6 19. e4 dxe4 20. Qxd7 Rxd7 21. Rxd7 Bxd7 22. Nxe4 Nxe4 23. Bxe4 {½-½ (34) Slavinsky,R (2075)-Susen,J (1789) Valasska Bystrice 2016}) 14... Bc8 {[%emt 0:07:00]} 15. Nd4 {[%emt 0:08:30]} Ne5 {[%emt 0:05:30]} 16. Nd3 {[%emt 0:04:30]} Bd7 {[%emt 0:09:30]} 17. Nxe5 {[%emt 0:01:30]} Qxe5 {[%emt 0:00:30]} 18. e3 {[%emt 0:00:30]} Rac8 {[%emt 0:01:30]} 19. Qb3 {[%emt 0:03:30]} b6 {[%emt 0:02:30]} 20. h3 {[%emt 0:03:30]} Rfd8 {[%emt 0:05:30]} 21. Qa3 {[%emt 0:03:30]} Qb8 {[%emt 0:03:30]} 22. Qd3 {[%emt 0:07:30]} Rc5 {[%emt 0:01:30]} 23. b4 {[%emt 0:00:00]} Rcc8 {[%emt 0:03:30]} 24. g4 {[%emt 0:13:00]} Qd6 {[%emt 0:01:30]} 25. a3 {[%emt 0:01:30]} a5 {[%emt 0:02:09]} 26. bxa5 {[%emt 0:03:30]} bxa5 {[%emt 0:00:02]} 27. Rfd1 {[%emt 0:05:30]} Rc5 {[%emt 0:00:21]} 28. Rxc5 {[%emt 0:00:30]} Qxc5 {[%emt 0:00:02]} 29. Ne2 {[%emt 0:02:02]} Bb5 {[%emt 0:01:46]} 30. Qc3 {[%emt 0:00:25]} Rc8 {[%emt 0:00:54]} 31. Rc1 {[%emt 0:02:18]} Qxc3 {[%emt 0:03:29]} 32. Rxc3 {[%emt 0:00:11]} Bc4 {[%emt 0:00:57]} 33. Nd4 {[%emt 0:02:16]} g6 {[%emt 0:00:48]} 34. f4 {[%emt 0:01:23]} Rb8 {[%emt 0:01:50]} 35. Kh2 {[%emt 0:04:54]} Rb2 {[%emt 0:00:56]} 36. Kg3 {[%emt 0:02:49]} Nd7 {[%emt 0:05:33]} 37. Nc6 {[%emt 0:02:11]} Rb5 {[%emt 0:01:38]} 38. e4 {[%emt 0:02:08]} Nb6 {[%emt 0:01:58]} 39. exd5 {[%emt 0:03:38]} Bxd5 {[%emt 0:00:14]} 40. Ne7+ {[%emt 0:01:07]} Kg7 {[%emt 0:01:23]} 41. Nxd5 {[%emt 0:04:08]} Nxd5 {[%emt 0:00:00]} 42. Bxd5 $11 {[%emt 0:00:30]} 1/2-1/2

[Event "39th Citta Arco Open 2017"]
[Site "Arco"]
[Date "2017.10.13"]
[Round "7.9"]
[White "Ruecker, Benjamin"]
[Black "Pedersen, Henrik Bolding"]
[Result "1-0"]
[ECO "A11"]
[WhiteElo "2261"]
[BlackElo "2125"]
[Annotator "NA"]
[PlyCount "51"]
[EventDate "2017.??.??"]
[EventType "swiss"]
[EventCountry "ITA"]
[SourceTitle "playchess.com"]
[Source "ChessBase"]
[SourceQuality "1"]
[TimeControl "40/5400+30:1800+30"]

1. c4 e6 2. Nc3 d5 3. e3 Nf6 4. Nf3 Bd6 5. b3 Nbd7 6. Bb2 c6 7. Qc2 Qe7 8. Be2 O-O 9. O-O Re8 10. Rfe1 e5 11. cxd5 Nxd5 12. Ne4 Ba3 13. Neg5 g6 14. Bxa3 Qxa3 15. d3 Qe7 16. Ne4 N7f6 17. Ned2 Nb4 18. Qb2 Bf5 19. e4 Bg4 20. a3 Na6 21. d4 exd4 22. Bxa6 bxa6 23. Nxd4 c5 24. Nc6 Qd6 25. Na5 Qe7 26. Rac1 1-0

[Event "39th Citta Arco Open 2017"]
[Site "Arco"]
[Date "2017.10.13"]
[Round "7.10"]
[White "Ager, Josef"]
[Black "Passerotti, Pierluigi"]
[Result "1/2-1/2"]
[ECO "A53"]
[WhiteElo "2109"]
[BlackElo "2210"]
[Annotator "NA"]
[PlyCount "63"]
[EventDate "2017.??.??"]
[EventType "swiss"]
[EventCountry "ITA"]
[SourceTitle "playchess.com"]
[Source "ChessBase"]
[SourceQuality "1"]
[TimeControl "40/5400+30:1800+30"]

1. Nf3 {[%emt 0:00:30]} d6 {[%emt 0:13:00]} 2. d4 {[%emt 0:01:30]} Bg4 {[%emt 0:00:00]} 3. e3 {[%emt 0:01:30]} Nd7 {[%emt 0:02:00]} 4. Be2 {[%emt 0:00:30]} Ngf6 {[%emt 0:05:30]} 5. h3 {[%emt 0:01:30]} Bh5 {[%emt 0:00:00]} 6. c4 {[%emt 0:00:30]} e5 {[%emt 0:04:00]} 7. Nc3 {[%emt 0:02:30]} c6 {[%emt 0:00:30]} 8. b3 {[%emt 0:03:30]} Be7 {[%emt 0:07:30]} 9. Bb2 {[%emt 0:01:30]} Qc7 {[%emt 0:01:30]} 10. Rc1 {[%emt 0:04:30]} Rd8 {[%emt 0:03:30]} 11. d5 {[%emt 0:01:30]} Nc5 {[%emt 0:15:30]} 12. b4 $11 {[%emt 0:00:30]} Nce4 {[%emt 0:02:30]} 13. Nxe4 {[%emt 0:11:30]} Nxe4 {[%emt 0:00:30]} 14. Qc2 {[%emt 0:00:30]} Bg6 {[%emt 0:11:30]} 15. Bd3 {[%emt 0:04:30]} cxd5 {[%emt 0:00:30]} 16. cxd5 {[%emt 0:00:00]} Qxc2 {[%emt 0:05:30]} 17. Bxc2 {[%emt 0:00:00]} a6 {[%emt 0:11:49]} 18. Nd2 {[%emt 0:01:30]} Nxd2 {[%emt 0:04:18]} 19. Kxd2 {[%emt 0:00:30]} Kd7 {[%emt 0:00:10]} 20. f4 {[%emt 0:05:30]} exf4 {[%emt 0:00:23]} 21. exf4 {[%emt 0:00:30]} Bxc2 {[%emt 0:03:23]} 22. Rxc2 {[%emt 0:00:00]} Rc8 {[%emt 0:01:16]} 23. g4 {[%emt 0:02:00]} Rxc2+ {[%emt 0:01:41]} 24. Kxc2 {[%emt 0:00:30]} Rc8+ {[%emt 0:01:14]} 25. Kd3 {[%emt 0:00:00]} g6 {[%emt 0:00:17]} 26. g5 {[%emt 0:02:00]} Rf8 {[%emt 0:02:23]} 27. h4 {[%emt 0:01:30]} f6 {[%emt 0:00:10]} 28. Ke4 {[%emt 0:00:00]} Re8 {[%emt 0:01:55]} 29. Kf3 {[%emt 0:01:00]} Rf8 {[%emt 0:00:35]} 30. Ke4 {[%emt 0:02:30]} Re8 {[%emt 0:00:39]} 31. Kd3 {[%emt 0:01:30]} Rf8 {[%emt 0:00:11]} 32. Ke4 {[%emt 0:01:30]} 1/2-1/2

[Event "39th Citta Arco Open 2017"]
[Site "Arco"]
[Date "2017.10.13"]
[Round "7.11"]
[White "Molina, Fabrizio"]
[Black "Vezzani, Stefano"]
[Result "1/2-1/2"]
[ECO "A26"]
[WhiteElo "2208"]
[BlackElo "2121"]
[Annotator "NA"]
[PlyCount "54"]
[EventDate "2017.??.??"]
[EventType "swiss"]
[EventCountry "ITA"]
[SourceTitle "playchess.com"]
[Source "ChessBase"]
[SourceQuality "1"]
[TimeControl "40/5400+30:1800+30"]

1. Nf3 {[%emt 0:00:30]} g6 {[%emt 0:01:00]} 2. c4 {[%emt 0:00:30]} Bg7 {[%emt 0:00:00]} 3. Nc3 {[%emt 0:01:30]} d6 {[%emt 0:01:00]} 4. g3 {[%emt 0:01:30]} e5 {[%emt 0:01:30]} 5. Bg2 {[%emt 0:00:30]} Nc6 {[%emt 0:00:30]} 6. d3 {[%emt 0:00:30]} Nge7 {[%emt 0:00:30]} 7. O-O {[%emt 0:00:30]} Rb8 {[%emt 0:00:00]} 8. Rb1 {[%emt 0:03:30]} a6 {[%emt 0:00:00]} 9. b4 {[%emt 0:04:30]} O-O {[%emt 0:02:30]} 10. Ne1 {[%emt 0:23:30]} b5 {[%emt 0:05:30]} 11. Nd5 {[%emt 0:08:30]} Nxd5 {[%emt 0:09:30]} 12. cxd5 {[%emt 0:00:30]} Ne7 {[%emt 0:00:30]} 13. d4 $11 {[%emt 0:08:30]} Bb7 {[%emt 0:06:30]} 14. dxe5 {[%emt 0:02:30]} dxe5 {[%emt 0:01:30]} 15. e4 {[%emt 0:00:30]} c6 {[%emt 0:02:30]} 16. d6 {[%emt 0:07:30]} Nc8 {[%emt 0:01:30]} 17. Be3 {[%emt 0:00:30]} Qxd6 {[%emt 0:14:30]} 18. Bc5 {[%emt 0:03:30]} Qxd1 {[%emt 0:02:30]} 19. Rxd1 {[%emt 0:00:00]} Re8 {[%emt 0:00:30]} 20. Rd7 {[%emt 0:02:00]} Ba8 {[%emt 0:02:30]} 21. f4 {[%emt 0:06:30]} Rb7 {[%emt 0:00:30]} 22. Rd1 {[%emt 0:03:30]} Nb6 {[%emt 0:01:30]} 23. Bxb6 {[%emt 0:02:01]} Rxb6 {[%emt 0:00:30]} 24. Nd3 {[%emt 0:00:06]} exf4 {[%emt 0:09:30]} 25. gxf4 {[%emt 0:00:02]} Bd4+ {[%emt 0:00:00]} 26. Kh1 {[%emt 0:00:02]} Rbb8 {[%emt 0:01:00]} 27. e5 {[%emt 0:10:10]} a5 {[%emt 0:03:30]} 1/2-1/2

[Event "39th Citta Arco Open 2017"]
[Site "Arco"]
[Date "2017.10.13"]
[Round "7.12"]
[White "Huemmer, Bernd"]
[Black "Trauth, Michael"]
[Result "1/2-1/2"]
[ECO "A38"]
[WhiteElo "2169"]
[BlackElo "2112"]
[Annotator "NA"]
[PlyCount "65"]
[EventDate "2017.??.??"]
[EventType "swiss"]
[EventCountry "ITA"]
[SourceTitle "playchess.com"]
[Source "ChessBase"]
[SourceQuality "1"]
[TimeControl "40/5400+30:1800+30"]

1. c4 {[%emt 0:00:30]} c5 {[%emt 0:09:00]} 2. Nc3 {[%emt 0:00:30]} g6 {[%emt 0:00:30]} 3. Nf3 {[%emt 0:01:30]} Nf6 {[%emt 0:00:30]} 4. d4 {[%emt 0:00:00]} cxd4 {[%emt 0:00:30]} 5. Nxd4 {[%emt 0:00:00]} Nc6 {[%emt 0:00:30]} 6. g3 {[%emt 0:00:30]} Bg7 {[%emt 0:00:30]} 7. Bg2 {[%emt 0:00:00]} O-O {[%emt 0:00:30]} 8. O-O {[%emt 0:00:00]} d6 {[%emt 0:00:30]} 9. Nc2 {[%emt 0:03:30]} Be6 {[%emt 0:05:30]} 10. b3 {[%emt 0:05:30]} Qd7 {[%emt 0:02:30]} 11. Bb2 {[%emt 0:16:30]} Bh3 {[%emt 0:04:30]} 12. Ne3 {[%emt 0:02:30]} Bxg2 {[%emt 0:06:30]} 13. Kxg2 {[%emt 0:03:30]} Rfd8 {[%emt 0:00:30]} 14. Qd2 {[%emt 0:02:30]} e6 {[%emt 0:04:30]} 15. Rad1 {[%emt 0:01:30]} a6 {[%emt 0:09:30]} 16. Ba3 {[%emt 0:08:30]} Ne8 {[%emt 0:12:30]} 17. Ne4 {[%emt 0:12:30]} Nd4 {[%emt 0:07:30]} 18. Bb2 {[%emt 0:03:30]} f5 {[%emt 0:13:51]} 19. Bxd4 {[%emt 0:02:30]} fxe4 {[%emt 0:00:15]} 20. Bxg7 {[%emt 0:00:30]} Qxg7 {[%emt 0:00:48]} 21. Qd4 {[%emt 0:01:30]} Nf6 {[%emt 0:01:14]} 22. Qb6 {[%emt 0:02:30]} Qe7 {[%emt 0:00:51]} 23. Rd2 {[%emt 0:01:30]} Rd7 {[%emt 0:01:42]} 24. Rfd1 {[%emt 0:00:30]} Rad8 {[%emt 0:00:19]} 25. Qd4 {[%emt 0:02:30]} d5 {[%emt 0:02:26]} 26. Qe5 {[%emt 0:02:30]} Kf7 {[%emt 0:00:32]} 27. f3 {[%emt 0:04:30]} exf3+ {[%emt 0:02:07]} 28. exf3 {[%emt 0:00:00]} Qd6 {[%emt 0:00:51]} 29. Qxd6 {[%emt 0:02:00]} Rxd6 {[%emt 0:00:01]} 30. cxd5 {[%emt 0:00:30]} Nxd5 {[%emt 0:01:06]} 31. Nxd5 {[%emt 0:01:30]} Rxd5 {[%emt 0:00:54]} 32. Rxd5 {[%emt 0:00:30]} exd5 {[%emt 0:00:12]} 33. Kf2 {[%emt 0:01:17]} 1/2-1/2

[Event "39th Citta Arco Open 2017"]
[Site "Arco"]
[Date "2017.10.13"]
[Round "7.13"]
[White "De Santis, Alessio"]
[Black "Zucchelli, Massimo"]
[Result "1-0"]
[ECO "A13"]
[WhiteElo "2162"]
[BlackElo "2108"]
[Annotator "NA"]
[PlyCount "33"]
[EventDate "2017.??.??"]
[EventType "swiss"]
[EventCountry "ITA"]
[SourceTitle "playchess.com"]
[Source "ChessBase"]
[SourceQuality "1"]
[TimeControl "40/5400+30:1800+30"]

1. Nf3 {[%emt 0:09:30]} d5 {[%emt 0:02:00]} 2. c4 {[%emt 0:00:30]} e6 {[%emt 0:00:30]} 3. e3 {[%emt 0:00:30]} Nf6 {[%emt 0:04:30]} 4. b3 {[%emt 0:00:30]} Nbd7 {[%emt 0:02:30]} 5. Bb2 {[%emt 0:00:30]} Be7 {[%emt 0:03:30]} 6. Nc3 {[%emt 0:04:30]} c6 {[%emt 0:12:30]} 7. Qc2 {[%emt 0:04:30]} O-O {[%emt 0:04:30]} 8. d4 {[%emt 0:18:30]} b6 {[%emt 0:12:30]} 9. Bd3 {[%emt 0:04:30]} Bb7 {[%emt 0:01:30]} 10. Rd1 {[%emt 0:01:30]} Rc8 {[%emt 0:07:30]} 11. Ng5 {[%emt 0:04:30]} h6 {[%emt 0:00:30]} 12. h4 {[%emt 0:01:30]} e5 {[%emt 0:06:30]} 13. Bh7+ {[%emt 0:00:30]} Kh8 {[%emt 0:01:30]} 14. dxe5 {[%emt 0:00:30]} Nxe5 {[%emt 0:07:30]} 15. Bf5 {[%emt 0:01:30]} Ned7 {[%emt 0:06:30]} 16. Bxd7 {[%emt 0:00:30]} Nxd7 {[%emt 0:01:30]} 17. Qh7# {[%emt 0:00:30]} 1-0

[Event "39th Citta Arco Open 2017"]
[Site "Arco"]
[Date "2017.10.13"]
[Round "7.15"]
[White "Sprotte, Norbert"]
[Black "Voelker, Sebastian"]
[Result "1-0"]
[ECO "D12"]
[WhiteElo "2154"]
[BlackElo "2018"]
[Annotator "NA"]
[PlyCount "89"]
[EventDate "2017.??.??"]
[EventType "swiss"]
[EventCountry "ITA"]
[SourceTitle "playchess.com"]
[Source "ChessBase"]
[SourceQuality "1"]
[TimeControl "40/5400+30:1800+30"]

1. d4 {[%emt 0:00:30]} d5 {[%emt 0:01:00]} 2. Nf3 {[%emt 0:00:00]} Nf6 {[%emt 0:00:30]} 3. e3 {[%emt 0:01:00]} c6 {[%emt 0:02:30]} 4. c4 {[%emt 0:01:30]} Bf5 {[%emt 0:01:30]} 5. Qb3 {[%emt 0:04:30]} Qc7 {[%emt 0:11:30]} 6. Nc3 {[%emt 0:06:30]} e6 {[%emt 0:04:30]} 7. Nh4 {[%emt 0:04:30] D12: Damengambit (Slawische Verteidigung)} Bg6 {[%emt 0:07:30]} 8. Nxg6 {[%emt 0:04:30]} hxg6 {[%emt 0:01:30]} 9. g3 {[%emt 0:01:30]} Bd6 {[%emt 0:02:30]} 10. Bg2 {[%emt 0:04:30]} Nbd7 {[%emt 0:01:30]} 11. Bd2 {[%emt 0:04:30]} O-O {[%emt 0:02:30]} 12. O-O {[%emt 0:03:30]} Rac8 $146 {[%emt 0:02:30]} ({Vorgänger:} 12... a5 13. Rac1 Bb4 14. Rfd1 Nb6 15. c5 Nc4 {½-½ (35) De Souza,S (2593)-Almiron,L (2574) ICCF email 2008}) 13. Rac1 {[%emt 0:05:30]} Qb8 {[%emt 0:01:30]} 14. e4 {[%emt 0:06:30]} dxc4 {[%emt 0:05:30]} 15. Qxc4 {[%emt 0:00:30]} e5 {[%emt 0:01:30]} 16. dxe5 {[%emt 0:03:30]} Nxe5 {[%emt 0:03:30]} 17. Qe2 {[%emt 0:01:30]} b5 {[%emt 0:02:30]} 18. Bg5 {[%emt 0:02:30]} Rfe8 {[%emt 0:12:30]} 19. Rfd1 {[%emt 0:01:30]} Be7 {[%emt 0:13:30]} 20. h3 {[%emt 0:05:30]} b4 {[%emt 0:12:38]} 21. Na4 {[%emt 0:05:30]} Qb5 {[%emt 0:00:08]} 22. Qc2 {[%emt 0:01:30]} Nf3+ {[%emt 0:01:41]} 23. Bxf3 {[%emt 0:00:00]} Qxg5 {[%emt 0:00:05]} 24. b3 {[%emt 0:03:00]} Rc7 {[%emt 0:03:23]} 25. Bg2 {[%emt 0:04:30]} Bf8 {[%emt 0:01:32]} 26. Re1 {[%emt 0:02:30]} Qe5 {[%emt 0:00:15]} 27. f4 {[%emt 0:02:59]} Qd4+ {[%emt 0:00:48]} 28. Qf2 {[%emt 0:01:04]} Rd8 {[%emt 0:00:12]} 29. e5 {[%emt 0:05:24]} Nh5 {[%emt 0:01:16] [#]} 30. Re3 $1 {[%emt 0:03:42]} ({Worse is} 30. Rxc6 Rxc6 31. Bxc6 Nxg3 $15) 30... Be7 {[%emt 0:00:26] [#]} 31. Kh2 {[%emt 0:00:59]} ({Weaker is} 31. Bxc6 Rdc8 $11) ({White should play} 31. Rc4 $1 $18 {[%cal Rc4d4]} Qd2 32. Re2 (32. Bxc6 Rcc8 $16) (32. Rxc6 Qxf2+ 33. Kxf2 Rd2+ 34. Re2 Rxe2+ 35. Kxe2 Nxg3+ 36. Kf2 Rxc6 $14)) 31... g5 {[%emt 0:00:21]} 32. Rc4 {[%emt 0:01:52]} Qd1 {[%emt 0:00:40]} 33. Bf3 {[%emt 0:01:22]} gxf4 {[%emt 0:00:52]} 34. Bxd1 {[%emt 0:02:03]} fxg3+ {[%emt 0:01:23]} 35. Rxg3 {[%emt 0:00:17]} Nxg3 {[%emt 0:00:35]} 36. Kxg3 {[%emt 0:03:31]} Rxd1 {[%emt 0:00:29]} 37. Rd4 {[%emt 0:00:56]} Rd7 {[%emt 0:01:14]} 38. Rxd7 {[%emt 0:00:46]} Rxd7 {[%emt 0:00:14]} 39. Nb2 {[%emt 0:01:09]} c5 {[%emt 0:00:44]} 40. Nc4 {[%emt 0:00:44]} Rd4 {[%emt 0:30:25]} 41. Qf5 {[%emt 0:00:42]} Bh4+ {[%emt 0:00:00]} 42. Kf3 {[%emt 0:00:30]} g5 {[%emt 0:00:00]} 43. Qc8+ {[%emt 0:00:30]} Kg7 {[%emt 0:00:00]} 44. Qxc5 {[%emt 0:01:30]} Rf4+ $18 {[%emt 0:00:00]} 45. Ke2 {[%emt 0:01:30]} 1-0

[Event "39th Citta Arco Open 2017"]
[Site "Arco"]
[Date "2017.10.13"]
[Round "7.16"]
[White "Tonina, Filippo"]
[Black "Luciani, Carlo"]
[Result "1/2-1/2"]
[ECO "E94"]
[WhiteElo "2021"]
[BlackElo "2261"]
[Annotator "NA"]
[PlyCount "104"]
[EventDate "2017.??.??"]
[EventType "swiss"]
[EventCountry "ITA"]
[SourceTitle "playchess.com"]
[Source "ChessBase"]
[SourceQuality "1"]
[TimeControl "40/5400+30:1800+30"]

1. d4 {[%emt 0:06:30]} Nf6 {[%emt 0:01:00]} 2. c4 {[%emt 0:00:30]} g6 {[%emt 0:00:30]} 3. Nc3 {[%emt 0:03:30]} Bg7 {[%emt 0:00:30]} 4. e4 {[%emt 0:00:30]} d6 {[%emt 0:00:30]} 5. Nf3 {[%emt 0:00:00]} O-O {[%emt 0:00:00]} 6. Be2 {[%emt 0:00:00]} Nbd7 {[%emt 0:00:00]} 7. O-O {[%emt 0:00:30]} e5 {[%emt 0:00:30]} 8. Be3 {[%emt 0:00:30]} Re8 {[%emt 0:00:00]} 9. d5 {[%emt 0:04:30]} Ng4 {[%emt 0:00:00]} 10. Bg5 {[%emt 0:00:30] E94: King's Indian: Classical: 6 Be2 e5 7 0-0: Various Black 7th moves} f6 {[%emt 0:00:00]} 11. Bc1 {[%emt 0:00:00]} (11. Bh4) 11... Nh6 {[%emt 0:00:00]} 12. Ne1 {[%emt 0:01:00]} f5 {[%emt 0:04:30]} 13. f3 {[%emt 0:01:30] [#]} Nf6 $146 {[%emt 0:09:30]} ({Predecessor:} 13... f4 14. Rb1 Nf7 15. b4 h5 16. Nd3 g5 17. c5 Nf6 18. cxd6 cxd6 19. a4 g4 20. b5 Kh8 21. Nb2 Rg8 22. Nc4 Bf8 23. Kh1 Nh7 24. Ba3 g3 {0-1 (24) Gasiorowski,B (2134)-Mista,A (2553) Ostroda 2007}) 14. Be3 {[%emt 0:09:30]} fxe4 {[%emt 0:14:30]} 15. Nxe4 {[%emt 0:00:30]} Nf5 {[%emt 0:00:30]} 16. Bg5 {[%emt 0:01:30]} h6 {[%emt 0:09:30]} 17. Bxf6 {[%emt 0:01:30]} Bxf6 {[%emt 0:00:30]} 18. Nxf6+ {[%emt 0:01:30]} Qxf6 {[%emt 0:00:30]} 19. Qd2 {[%emt 0:00:30]} Nd4 {[%emt 0:05:30]} 20. Bd3 {[%emt 0:01:30]} Kg7 {[%emt 0:03:30]} 21. Nc2 {[%emt 0:01:30]} c5 {[%emt 0:01:30]} 22. Rae1 {[%emt 0:00:30]} Bf5 {[%emt 0:02:30]} 23. Be4 {[%emt 0:01:30]} a6 {[%emt 0:09:30]} 24. Qd3 {[%emt 0:07:30]} Rab8 {[%emt 0:02:30]} 25. a4 {[%emt 0:01:30]} Nxc2 {[%emt 0:08:30]} 26. Qxc2 {[%emt 0:00:30]} b5 {[%emt 0:00:30]} 27. axb5 {[%emt 0:00:30]} axb5 {[%emt 0:00:00]} 28. b3 {[%emt 0:00:30]} Re7 {[%emt 0:05:00]} 29. Ra1 {[%emt 0:01:30]} Reb7 {[%emt 0:03:30]} 30. Ra2 {[%emt 0:00:30]} Qg5 {[%emt 0:03:18]} 31. Qd2 {[%emt 0:25:30]} Qxd2 {[%emt 0:01:48]} 32. Rxd2 {[%emt 0:00:30]} Ra8 {[%emt 0:02:10]} 33. g4 {[%emt 0:01:30]} Bxe4 {[%emt 0:01:28]} 34. fxe4 {[%emt 0:00:00]} Ra3 {[%emt 0:00:18]} 35. Rdf2 {[%emt 0:01:00]} Rxb3 {[%emt 0:00:38]} 36. cxb5 {[%emt 0:00:30]} R3xb5 {[%emt 0:00:46]} 37. Rf6 {[%emt 0:00:00]} R5b6 {[%emt 0:00:28]} 38. h4 {[%emt 0:00:00]} c4 {[%emt 0:01:38]} 39. g5 {[%emt 0:02:30]} hxg5 {[%emt 0:02:40]} 40. hxg5 {[%emt 0:00:00]} c3 {[%emt 0:29:59]} 41. Rc1 {[%emt 0:30:00]} Rb1 {[%emt 0:00:25]} 42. Rff1 {[%emt 0:00:30]} Rxc1 {[%emt 0:08:09]} 43. Rxc1 {[%emt 0:00:30]} Rb4 {[%emt 0:00:16]} 44. Rxc3 {[%emt 0:00:30]} Rxe4 {[%emt 0:00:09]} 45. Rc6 {[%emt 0:01:30]} Rg4+ {[%emt 0:00:10]} 46. Kf2 {[%emt 0:00:00]} Rxg5 {[%emt 0:00:15]} 47. Rxd6 {[%emt 0:00:00]} Rf5+ {[%emt 0:00:00]} 48. Ke3 {[%emt 0:00:00]} Rf1 {[%emt 0:00:00]} 49. Re6 {[%emt 0:00:00]} Re1+ {[%emt 0:00:00]} 50. Kf2 {[%emt 0:00:00]} Re4 {[%emt 0:00:00]} 51. Kf3 {[%emt 0:00:00]} Re1 {[%emt 0:00:00]} 52. Kf2 $11 {[%emt 0:00:00]} Re4 {[%emt 0:00:00]} 1/2-1/2